fUSD/lending_fUSD_20240407
["ID","MTS","AMOUNT","RATE_DAILY","PERIOD"]
[321790453,1712511197608,-4333.24,0.00020821,2]
[321790454,1712511197617,-500.0,0.00020821,2]
[321790455,1712511197626,-607.96,0.00020821,2]
[321790456,1712511197636,-2401.63,0.00020821,2]
[321790457,1712511197645,-4317.53,0.00020821,2]
[321790458,1712511197654,-1796.71,0.00020821,2]
[321790459,1712511197673,-500.0,0.00020821,2]
[321790460,1712511197683,-4333.24,0.00020821,2]
[321790461,1712511197692,-500.0,0.00020821,2]
[321790462,1712511197701,-607.96,0.00020821,2]
[321790463,1712511197710,-4317.53,0.00020821,2]
[321790464,1712511197720,-2401.63,0.00020821,2]
[321790465,1712511197729,-1796.71,0.00020821,2]
[321790466,1712511197738,-4333.24,0.00020821,2]
[321790467,1712511197748,-500.0,0.00020821,2]
[321790468,1712511197757,-500.0,0.00020821,2]
[321790469,1712511197766,-607.96,0.00020821,2]
[321790470,1712511197775,-4317.53,0.00020821,2]
[321790471,1712511197785,-2401.63,0.00020821,2]
[321790472,1712511197794,-1796.75048119,0.00020821,2]
[321790473,1712511197803,-500.0,0.00020821,2]
[321790474,1712511197813,-599.13,0.00020821,2]
[321790475,1712511197823,-500.0,0.00020821,2]
[321790476,1712511197833,-4317.53,0.00020821,2]
[321790477,1712511197843,-607.96,0.00020821,2]
[321790478,1712511197852,-2401.63,0.00020821,2]
[321790479,1712511197861,-527.73625181,0.00020821,2]
[321790480,1712511197870,-500.0,0.00020821,2]
[321790481,1712511197880,-4317.53,0.00020821,2]
[321790482,1712511197889,-2401.63,0.00020821,2]
[321790483,1712511197898,-607.96,0.00020821,2]
[321790484,1712511197907,-428.79120488,0.00020821,2]
[321790485,1712511197917,-2401.63,0.00020821,2]
[321790486,1712511197925,-4317.53,0.00020821,2]
[321790487,1712511197939,-607.96,0.00020821,2]
[321790488,1712511197949,-2401.63,0.00020821,2]
[321790489,1712511197958,-4317.53,0.00020821,2]
[321790490,1712511197968,-607.96,0.00020821,2]
[321790491,1712511197977,-2401.63,0.00020821,2]
[321790492,1712511197987,-4317.53,0.00020821,2]
[321790493,1712511197997,-607.96,0.00020821,2]
[321790494,1712511198006,-2401.63,0.00020821,2]
[321790495,1712511198016,-607.96,0.00020821,2]
[321790496,1712511198026,-2401.70930644,0.00020821,2]
[321790497,1712511198035,-607.96,0.00020821,2]
[321790498,1712511198045,-4317.53,0.00020821,2]
[321790499,1712511198055,-500.0,0.00020821,2]
[321790500,1712511198064,-607.96,0.00020821,2]
[321790501,1712511198077,-4317.53,0.00020821,2]
[321790502,1712511198087,-500.0,0.00020821,2]
[321790503,1712511198096,-607.96,0.00020821,2]
[321790504,1712511198106,-500.0,0.00020821,2]
[321790505,1712511198115,-4317.53,0.00020821,2]
[321790506,1712511198125,-500.0,0.00020821,2]
[321790507,1712511198135,-500.0,0.00020821,2]
[321790508,1712511198145,-607.96,0.00020821,2]
[321790509,1712511198155,-4317.53,0.00020821,2]
[321790510,1712511198164,-500.0,0.00020821,2]
[321790511,1712511198174,-500.0,0.00020821,2]
[321790512,1712511198183,-607.96,0.00020821,2]
[321790513,1712511198192,-4317.7609298,0.00020821,2]
[321790514,1712511198201,-544.04447535,0.00020821,2]
[321790515,1712511198211,-607.96,0.00020821,2]
[321790516,1712511198221,-500.0,0.00020821,2]
[321790517,1712511198231,-608.14,0.00020821,2]
[321790518,1712511198241,-500.0,0.00020821,2]
[321790519,1712511198250,-500.0,0.00020821,2]
[321790520,1712511198259,-500.0,0.00020821,2]
[321790521,1712511198268,-500.0,0.00020821,2]
[321790522,1712511198278,-4333.24,0.00020896,2]
[321790523,1712511198289,-4333.24,0.00020897,2]
[321790524,1712511198299,-4333.24,0.00020988,2]
[321790525,1712511198309,-4333.24,0.00020988,2]
[321790526,1712511198322,-4333.24,0.00020988,2]
[321790527,1712511198539,-4333.24,0.00020988,2]
[321790528,1712511198550,-4333.37326181,0.00020988,2]
[321790529,1712511198560,-1017.70204627,0.00021205,2]
[321790530,1712511198569,-151.0,0.00021918,2]
[321790531,1712511198580,-151.0,0.00021918,2]
[321790532,1712511198589,-151.0,0.00021918,2]
[321790533,1712511198598,-151.0,0.00021918,2]
[321790534,1712511198607,-151.0,0.00021918,2]
[321790535,1712511198616,-151.0,0.00021918,2]
[321790536,1712511198625,-151.0,0.00021918,2]
[321790537,1712511198634,-151.0,0.00021918,2]
[321790538,1712511198643,-282.40766,0.00021918,2]
[321790539,1712511198652,-539.527,0.00023163,2]
[321790540,1712511199714,-1258.0,0.00023163,2]
[321790541,1712511199727,-154.377,0.00023163,2]
[321790542,1712511199742,-31522.18656849,0.0002458,2]
[321790543,1712511199762,-489.02686996,0.0002458,2]
[321790544,1712511199783,-279.226718,0.0002458,2]
[321790545,1712511264750,804.11,0.00017846,2]
[321790546,1712511291278,361.92504692,0.00016654,2]
[321790547,1712511388725,467.19131066,0.00016654,2]
[321790548,1712511746454,861.91,0.00017238,2]
[321790549,1712511781025,185.42,0.00019096,10]
[321790550,1712511783656,150.5,0.0002071,15]
[321790551,1712511784146,150.5,0.000207,15]
[321790552,1712511784618,299.0,0.0002069,15]
[321790553,1712511859827,191.98,0.00016712,2]
[321790554,1712511903414,294.0,0.0002071,15]
[321790555,1712511903446,150.5,0.0002071,15]
[321790556,1712511903868,294.0,0.000207,15]
[321790557,1712511903897,150.5,0.000207,15]
[321790558,1712511904362,150.5,0.0002069,15]
[321790559,1712511904481,294.0,0.0002069,15]
[321790560,1712511969936,26533.73181754,0.00017366,5]
[321790561,1712511992936,569.76931464,0.00018519,7]
[321790562,1712512008863,569.76931464,0.00019295,7]
[321790563,1712512029180,-682.38593014,0.00018381,2]
[321790564,1712512029206,-831.63122883,0.00018382,2]
[321790565,1712512032870,711.96073228,0.00019295,7]
[321790566,1712512144495,206.0,0.0002071,15]
[321790567,1712512145098,206.0,0.000207,15]
[321790568,1712512145582,206.0,0.0002069,15]
[321790569,1712512147160,-263.09163061,0.00018374,2]
[321790570,1712512147181,-3371.01446939,0.00018374,2]
[321790571,1712512158106,-2559.4717,0.00018367,2]
[321790572,1712512163159,-259.6283,0.00018367,2]
[321790573,1712512163182,-342.43500003,0.00018372,2]
[321790574,1712512163212,-1000.0,0.00018373,2]
[321790575,1712512163236,-166.91997935,0.00018373,2]
[321790576,1712512163259,-1024.88064779,0.00018374,2]
[321790577,1712512163282,-500.0,0.00018375,2]
[321790578,1712512163306,-1000.0,0.00018375,2]
[321790579,1712512163328,-2640.36787283,0.00018376,2]
[321790580,1712512168127,-433.9180845,0.00018376,2]
[321790581,1712512168149,-1042.90820021,0.00018379,2]
[321790582,1712512168170,-1077.74877117,0.00018382,2]
[321790583,1712512168189,-150.0,0.00018397,2]
[321790584,1712512168211,-627.23,0.00018473,2]
[321790585,1712512168233,-180.0,0.00018526,2]
[321790586,1712512168254,-200.0,0.00018548,2]
[321790587,1712512168273,-163.55,0.00018652,2]
[321790588,1712512168295,-499.99,0.00018652,2]
[321790589,1712512168316,-2201.79625155,0.00018712,2]
[321790590,1712512168347,-6928.44717435,0.00018712,2]
[321790591,1712512171091,-4716.5472582,0.00018378,2]
[321790592,1712512171111,-7779.6665741,0.00018712,2]
[321790593,1712512171131,-150.99,0.00018712,2]
[321790594,1712512171151,-150.0,0.00018712,2]
[321790595,1712512171174,-6945.14,0.0001873,2]
[321790596,1712512171194,-741.27,0.00018824,2]
[321790597,1712512171219,-297.29902466,0.00019102,2]
[321790598,1712512171241,-175.61,0.00019112,2]
[321790599,1712512171262,-6758.38,0.00019178,2]
[321790600,1712512171283,-164.77879135,0.00019192,2]
[321790601,1712512171303,-362.65,0.00019209,2]
[321790602,1712512171322,-6630.54,0.00019221,2]
[321790603,1712512171342,-1045.12,0.00019246,2]
[321790604,1712512171362,-2780.27760656,0.00019292,2]
[321790605,1712512171383,-218.10817239,0.00019295,2]
[321790606,1712512171404,-616.22742246,0.00019295,2]
[321790607,1712512171425,-539.37731829,0.00019295,2]
[321790608,1712512171447,-311.32980376,0.00019295,2]
[321790609,1712512171466,-681.81093414,0.00019295,2]
[321790610,1712512171486,-264.23544895,0.00019295,2]
[321790611,1712512171507,-155.0,0.00019296,2]
[321790612,1712512171526,-7392.71664514,0.00019297,2]
[321790614,1712512232133,-4362.45929505,0.00019296,2]
[321790615,1712512232143,-9024.4664536,0.00019297,2]
[321790616,1712512232153,-7470.47823128,0.00019297,2]
[321790617,1712512232162,-20089.52125853,0.00019297,2]
[321790618,1712512232171,-200.0,0.00019411,2]
[321790619,1712512232180,-696.41,0.00019483,2]
[321790620,1712512232189,-861.91,0.00019502,2]
[321790621,1712512232199,-856.0,0.00019509,2]
[321790622,1712512232209,-400.0,0.000197,7]
[321790623,1712512232220,-213.53,0.00019763,2]
[321790624,1712512232231,-900.0,0.000198,7]
[321790625,1712512232240,-168.33,0.00019801,2]
[321790626,1712512232249,-186.40704061,0.000199,2]
[321790627,1712512232259,-1400.0,0.000199,7]
[321790628,1712512232269,-1300.93357321,0.000199,2]
[321790629,1712512232278,-344.22171996,0.000199,2]
[321790630,1712512232289,-196.27760884,0.0001999,2]
[321790631,1712512232299,-153.39,0.0001999,2]
[321790632,1712512232310,-153.39,0.0001999,2]
[321790633,1712512232320,-153.39,0.0001999,2]
[321790634,1712512232329,-153.39,0.0001999,2]
[321790635,1712512232338,-153.39,0.0001999,2]
[321790636,1712512232347,-153.39,0.0001999,2]
[321790637,1712512232357,-1000.0,0.00019998,2]
[321790638,1712512232366,-500.0,0.00019998,2]
[321790639,1712512232375,-343.20142731,0.00019998,2]
[321790640,1712512232384,-165.25888925,0.00019998,2]
[321790641,1712512232394,-351.70999999,0.00019998,2]
[321790642,1712512232404,-3433.64248663,0.00019998,2]
[321790644,1712512232414,-1130.31432446,0.00019998,2]
[321790646,1712512232423,-200.14641229,0.00019999,5]
[321790648,1712512232432,-321.68893254,0.00019999,5]
[321790650,1712512232441,-281.20442799,0.00019999,2]
[321790652,1712512232450,-500.0,0.00019999,2]
[321790654,1712512232459,-162.66749209,0.00019999,2]
[321790656,1712512232467,-155.0,0.0002,2]
[321790658,1712512232476,-155.0,0.0002,2]
[321790660,1712512232485,-403365.9384654,0.0002,2]
[321790662,1712512232497,-522.13920169,0.0002,2]
[321790667,1712512232539,-500.0,0.00019999,2]
[321790669,1712512232549,-977.67255991,0.0002,2]
[321790672,1712512232560,-168438.5125117,0.0002,2]
[321790719,1712512238145,-333.14997205,0.000199,2]
[321790720,1712512238156,-440.60759322,0.00019999,2]
[321790721,1712512238166,-6895.97243473,0.0002,2]
[321790722,1712512238196,-1092445.6462137,0.0002,2]
[321790723,1712512238206,-3045.64301195,0.0002,2]
[321790724,1712512238218,-194.414721,0.0002,2]
[321790725,1712512238229,-1157.3388273,0.00020059,2]
[321790726,1712512238241,-1157.33882729,0.00020059,2]
[321790727,1712512238251,-155.0,0.00020486,2]
[321790728,1712512238262,-166.62,0.00020487,2]
[321790729,1712512238274,-150.0,0.000205,2]
[321790730,1712512238284,-6855.2803,0.00020618,2]
[321790731,1712512238295,-1705.3199,0.00020618,2]
[321790732,1712512238305,-4934.3076,0.0002062,2]
[321790733,1712512238316,-15405.2114,0.0002062,2]
[321790734,1712512238326,-30611.0507,0.0002062,2]
[321790735,1712512238337,-153.39,0.0002071,2]
[321790736,1712512238347,-212.0,0.00020718,2]
[321790737,1712512238358,-1761.50887969,0.00020718,2]
[321790738,1712512238369,-550.38240893,0.00020719,2]
[321790739,1712512238379,-7500.0,0.0002072,2]
[321790740,1712512238390,-516588.9856816,0.0002072,2]
[321790741,1712512238401,-670.32436402,0.0002072,2]
[321790742,1712512238412,-245000.0,0.0002072,2]
[321790743,1712512238422,-500.0,0.0002072,2]
[321790744,1712512238432,-759.31842871,0.0002072,2]
[321790745,1712512238443,-184.28691248,0.00020721,2]
[321790746,1712512238453,-1189.25768235,0.00020721,2]
[321790747,1712512238464,-164.77879134,0.00020721,2]
[321790748,1712512238475,-161.02408066,0.00020721,2]
[321790749,1712512238485,-199.20521129,0.00020721,2]
[321790750,1712512238495,-676.98797806,0.00020721,2]
[321790751,1712512238505,-759.54556997,0.00020721,2]
[321790752,1712512238516,-1000.0,0.00020721,2]
[321790753,1712512238527,-10000.0,0.00020721,2]
[321790754,1712512238537,-5651.693,0.00020721,2]
[321790755,1712512238547,-1189.25768229,0.00020737,2]
[321790756,1712512238557,-1189.25768229,0.00020754,2]
[321790757,1712512238568,-1189.25768229,0.0002077,2]
[321790758,1712512238578,-1189.25768229,0.00020786,2]
[321790759,1712512238588,-1189.25768229,0.00020802,2]
[321790760,1712512238598,-356.09325716,0.0002081,2]
[321790761,1712512238608,-199.28090117,0.00020818,2]
[321790762,1712512238618,-4542.18289825,0.00020818,2]
[321790763,1712512238629,-448.41932474,0.00020818,2]
[321790764,1712512238639,-235.01017711,0.00020818,2]
[321790765,1712512238650,-1153.7547148,0.00020818,2]
[321790766,1712512238660,-155.48360245,0.00020818,2]
[321790767,1712512238670,-190.59064653,0.00020818,2]
[321790768,1712512238680,-27804.9257808,0.00020818,2]
[321790769,1712512238690,-211.22749614,0.00020818,2]
[321790770,1712512238700,-201.21618192,0.00020818,2]
[321790771,1712512238712,-282.63594193,0.00020818,2]
[321790772,1712512238722,-258.71451783,0.00020818,2]
[321790773,1712512238734,-661.63817277,0.00020818,2]
[321790774,1712512238745,-156.42178709,0.00020818,2]
[321790775,1712512238755,-371.52548277,0.00020818,2]
[321790776,1712512238767,-298.41877202,0.00020818,2]
[321790777,1712512238776,-1189.25768229,0.00020819,2]
[321790778,1712512238786,-189.98146973,0.00020819,2]
[321790779,1712512238796,-266.7377988,0.00020819,2]
[321790780,1712512238806,-1477.67255991,0.00020819,2]
[321790781,1712512238816,-560.6155768,0.00020819,2]
[321790782,1712512238826,-3578.73036371,0.00020819,2]
[321790783,1712512238835,-307.57969016,0.00020819,2]
[321790784,1712512238845,-5373.26239511,0.00020819,2]
[321790785,1712512238855,-3914.35612535,0.00020819,2]
[321790786,1712512238866,-3592.89899633,0.00020819,2]
[321790787,1712512238878,-300.0,0.00020819,2]
[321790788,1712512238887,-300.0,0.00020819,2]
[321790789,1712512238898,-300.0,0.00020819,2]
[321790790,1712512238909,-300.0,0.00020819,2]
[321790791,1712512238919,-300.0,0.00020819,2]
[321790792,1712512238929,-300.0,0.00020819,2]
[321790793,1712512238940,-300.0,0.00020819,2]
[321790794,1712512238951,-992.701128,0.0002082,2]
[321790795,1712512238960,-217.08737728,0.0002082,2]
[321790796,1712512238970,-237.15334608,0.0002082,2]
[321790797,1712512238981,-522.31122644,0.0002082,2]
[321790798,1712512238991,-3934.74586807,0.0002082,2]
[321790799,1712512239002,-213.87340818,0.00020821,2]
[321790800,1712512239012,-500.0,0.00020821,2]
[321790801,1712512239022,-500.0,0.00020821,2]
[321790802,1712512239032,-505.08407707,0.00020821,2]
[321790803,1712512239043,-500.0,0.00020821,2]
[321790804,1712512239053,-500.0,0.00020821,2]
[321790805,1712512239064,-519.15156437,0.00020821,2]
[321790806,1712512239073,-443.71405288,0.00020821,2]
[321790807,1712512239084,-502.02515234,0.00020821,2]
[321790808,1712512239094,-500.0,0.00020821,2]
[321790809,1712512239105,-500.0,0.00020821,2]
[321790810,1712512239115,-515.77137395,0.00020821,2]
[321790811,1712512239125,-500.0,0.00020821,2]
[321790812,1712512239135,-500.0,0.00020821,2]
[321790813,1712512239145,-500.0,0.00020821,2]
[321790814,1712512239155,-500.0,0.00020821,2]
[321790815,1712512239165,-500.0,0.00020821,2]
[321790816,1712512239175,-500.0,0.00020821,2]
[321790817,1712512239185,-500.0,0.00020821,2]
[321790818,1712512239195,-500.0,0.00020821,2]
[321790819,1712512239205,-500.0,0.00020821,2]
[321790820,1712512239215,-500.0,0.00020821,2]
[321790821,1712512239226,-500.0,0.00020821,2]
[321790822,1712512239238,-500.0,0.00020821,2]
[321790823,1712512239248,-500.0,0.00020821,2]
[321790824,1712512239259,-500.0,0.00020821,2]
[321790825,1712512239270,-508.10819622,0.00020821,2]
[321790826,1712512239280,-500.0,0.00020821,2]
[321790827,1712512239290,-500.0,0.00020821,2]
[321790828,1712512239299,-583.31643318,0.00020821,2]
[321790829,1712512239310,-500.0,0.00020821,2]
[321790830,1712512239322,-500.0,0.00020821,2]
[321790831,1712512239332,-1223.61,0.00020821,2]
[321790832,1712512239343,-1223.61,0.00020821,2]
[321790833,1712512239355,-1223.61,0.00020821,2]
[321790834,1712512239365,-1223.61,0.00020821,2]
[321790835,1712512239377,-1223.61,0.00020821,2]
[321790836,1712512239390,-1223.61,0.00020821,2]
[321790837,1712512239401,-1223.61,0.00020821,2]
[321790838,1712512239412,-1223.61,0.00020821,2]
[321790839,1712512239424,-1223.61,0.00020821,2]
[321790840,1712512239434,-1223.61,0.00020821,2]
[321790841,1712512239444,-1223.61,0.00020821,2]
[321790842,1712512239454,-1223.61,0.00020821,2]
[321790843,1712512239465,-1223.61,0.00020821,2]
[321790844,1712512239475,-1223.61,0.00020821,2]
[321790845,1712512239485,-1223.61,0.00020821,2]
[321790846,1712512239495,-1223.61,0.00020821,2]
[321790847,1712512239506,-1223.61,0.00020821,2]
[321790848,1712512239519,-1223.61,0.00020821,2]
[321790849,1712512239531,-500.0,0.00020821,2]
[321790850,1712512239541,-1223.61,0.00020821,2]
[321790851,1712512239552,-500.0,0.00020821,2]
[321790852,1712512239565,-1223.61,0.00020821,2]
[321790853,1712512239575,-500.0,0.00020821,2]
[321790854,1712512239585,-1223.61,0.00020821,2]
[321790855,1712512239596,-520.74670341,0.00020821,2]
[321790856,1712512239606,-1223.61,0.00020821,2]
[321790857,1712512239615,-1223.61,0.00020821,2]
[321790858,1712512239626,-1223.76010728,0.00020821,2]
[321790859,1712512239638,-510.17266134,0.00020821,2]
[321790860,1712512239648,-500.0,0.00020821,2]
[321790861,1712512239658,-500.0,0.00020821,2]
[321790862,1712512239668,-524.85577554,0.00020821,2]
[321790863,1712512239678,-500.0,0.00020821,2]
[321790864,1712512239687,-500.0,0.00020821,2]
[321790865,1712512239698,-520.77591657,0.00020821,2]
[321790866,1712512239708,-500.0,0.00020821,2]
[321790867,1712512239718,-500.0,0.00020821,2]
[321790868,1712512239728,-640.29750448,0.00020821,2]
[321790869,1712512239738,-500.0,0.00020821,2]
[321790870,1712512239748,-500.0,0.00020821,2]
[321790871,1712512239758,-500.0,0.00020821,2]
[321790872,1712512239768,-500.0,0.00020821,2]
[321790873,1712512239778,-521.06599045,0.00020821,2]
[321790874,1712512239788,-500.0,0.00020821,2]
[321790875,1712512239799,-530.53353637,0.00020821,2]
[321790876,1712512239810,-500.0,0.00020821,2]
[321790877,1712512239819,-500.0,0.00020821,2]
[321790878,1712512239829,-500.0,0.00020821,2]
[321790879,1712512239840,-500.0,0.00020821,2]
[321790880,1712512239850,-500.0,0.00020821,2]
[321790881,1712512239860,-500.0,0.00020821,2]
[321790882,1712512239870,-500.0,0.00020821,2]
[321790883,1712512239880,-500.0,0.00020821,2]
[321790884,1712512239890,-500.0,0.00020821,2]
[321790885,1712512240277,-500.0,0.00020821,2]
[321790886,1712512240295,-500.0,0.00020821,2]
[321790887,1712512240305,-500.0,0.00020821,2]
[321790888,1712512240317,-514.97709891,0.00020821,2]
[321790889,1712512240327,-500.0,0.00020821,2]
[321790890,1712512240337,-500.0,0.00020821,2]
[321790891,1712512240346,-500.0,0.00020821,2]
[321790892,1712512240356,-500.0,0.00020821,2]
[321790893,1712512240365,-500.0,0.00020821,2]
[321790894,1712512240374,-500.0,0.00020821,2]
[321790895,1712512240383,-500.0,0.00020821,2]
[321790896,1712512240392,-500.0,0.00020821,2]
[321790897,1712512240402,-500.0,0.00020821,2]
[321790898,1712512240411,-500.0,0.00020821,2]
[321790899,1712512240420,-500.0,0.00020821,2]
[321790900,1712512240429,-500.0,0.00020821,2]
[321790901,1712512240438,-500.0,0.00020821,2]
[321790902,1712512240447,-525.7,0.00020821,2]
[321790903,1712512240456,-234.72464424,0.00020821,2]
[321790904,1712512240465,-500.0,0.00020821,2]
[321790905,1712512240474,-500.0,0.00020821,2]
[321790906,1712512240483,-500.0,0.00020821,2]
[321790907,1712512240492,-500.0,0.00020821,2]
[321790908,1712512240501,-500.0,0.00020821,2]
[321790909,1712512240511,-500.0,0.00020821,2]
[321790910,1712512240520,-500.0,0.00020821,2]
[321790911,1712512240529,-279.5523168,0.00020821,2]
[321790912,1712512240538,-530.39783547,0.00020821,2]
[321790913,1712512240547,-500.0,0.00020821,2]
[321790914,1712512240556,-500.0,0.00020821,2]
[321790915,1712512240565,-500.0,0.00020821,2]
[321790916,1712512240574,-500.0,0.00020821,2]
[321790917,1712512240583,-500.0,0.00020821,2]
[321790918,1712512240593,-500.0,0.00020821,2]
[321790919,1712512240603,-500.0,0.00020821,2]
[321790920,1712512240612,-500.0,0.00020821,2]
[321790921,1712512240623,-500.0,0.00020821,2]
[321790922,1712512240633,-500.0,0.00020821,2]
[321790923,1712512240642,-500.0,0.00020821,2]
[321790924,1712512240652,-627.25864825,0.00020821,2]
[321790925,1712512240661,-500.0,0.00020821,2]
[321790926,1712512240670,-516.64334294,0.00020821,2]
[321790927,1712512240679,-500.0,0.00020821,2]
[321790928,1712512240688,-500.0,0.00020821,2]
[321790929,1712512240697,-500.0,0.00020821,2]
[321790930,1712512240708,-500.0,0.00020821,2]
[321790931,1712512240718,-231.26189313,0.00020821,2]
[321790932,1712512240727,-500.0,0.00020821,2]
[321790933,1712512240736,-500.0,0.00020821,2]
[321790934,1712512240745,-500.0,0.00020821,2]
[321790935,1712512240754,-500.0,0.00020821,2]
[321790936,1712512240764,-396.73247125,0.00020821,2]
[321790937,1712512240774,-500.0,0.00020821,2]
[321790938,1712512240783,-500.0,0.00020821,2]
[321790939,1712512240792,-500.0,0.00020821,2]
[321790940,1712512240801,-500.0,0.00020821,2]
[321790941,1712512240811,-500.0,0.00020821,2]
[321790942,1712512240820,-500.0,0.00020821,2]
[321790943,1712512240829,-500.0,0.00020821,2]
[321790944,1712512240838,-500.0,0.00020821,2]
[321790945,1712512240848,-500.0,0.00020821,2]
[321790946,1712512240857,-635.18898956,0.00020821,2]
[321790947,1712512240866,-519.12,0.00020821,2]
[321790948,1712512240876,-519.12,0.00020821,2]
[321790949,1712512240884,-519.12,0.00020821,2]
[321790950,1712512240893,-519.12,0.00020821,2]
[321790951,1712512240902,-519.12,0.00020821,2]
[321790952,1712512240911,-519.12,0.00020821,2]
[321790953,1712512240920,-519.12,0.00020821,2]
[321790954,1712512240930,-519.12,0.00020821,2]
[321790955,1712512240939,-519.12,0.00020821,2]
[321790956,1712512240948,-519.12,0.00020821,2]
[321790957,1712512240957,-519.12,0.00020821,2]
[321790958,1712512240967,-519.12,0.00020821,2]
[321790959,1712512240976,-519.12,0.00020821,2]
[321790960,1712512240985,-519.12,0.00020821,2]
[321790961,1712512240994,-519.12,0.00020821,2]
[321790962,1712512241003,-519.12,0.00020821,2]
[321790963,1712512241014,-519.12,0.00020821,2]
[321790964,1712512241023,-519.12,0.00020821,2]
[321790965,1712512241032,-519.12,0.00020821,2]
[321790966,1712512241041,-519.12,0.00020821,2]
[321790967,1712512241051,-519.12,0.00020821,2]
[321790968,1712512241060,-519.12,0.00020821,2]
[321790969,1712512241070,-519.12,0.00020821,2]
[321790970,1712512241079,-519.31381787,0.00020821,2]
[321790971,1712512241089,-500.0,0.00020821,2]
[321790972,1712512241098,-500.0,0.00020821,2]
[321790973,1712512241107,-500.0,0.00020821,2]
[321790974,1712512241116,-500.0,0.00020821,2]
[321790975,1712512241125,-500.0,0.00020821,2]
[321790976,1712512241135,-500.0,0.00020821,2]
[321790977,1712512241144,-500.0,0.00020821,2]
[321790978,1712512241154,-500.0,0.00020821,2]
[321790979,1712512241163,-500.0,0.00020821,2]
[321790980,1712512241174,-500.0,0.00020821,2]
[321790981,1712512241185,-500.0,0.00020821,2]
[321790982,1712512241196,-520.03300862,0.00020821,2]
[321790983,1712512241206,-500.0,0.00020821,2]
[321790984,1712512241215,-500.0,0.00020821,2]
[321790985,1712512241224,-500.0,0.00020821,2]
[321790986,1712512241236,-500.0,0.00020821,2]
[321790987,1712512241245,-317.32,0.00020821,2]
[321790988,1712512241254,-500.0,0.00020821,2]
[321790989,1712512241263,-200.0,0.00020821,2]
[321790990,1712512241272,-194.414721,0.00020822,2]
[321790991,1712512241282,-1189.25768229,0.00020835,2]
[321790992,1712512241293,-1189.25768229,0.00020851,2]
[321790993,1712512241302,-1189.25768229,0.00020867,2]
[321790994,1712512241312,-160.0,0.00020882,2]
[321790995,1712512241322,-1189.25768229,0.00020884,2]
[321790996,1712512241331,-196.27760884,0.00020888,2]
[321790997,1712512241340,-160.0,0.00020891,2]
[321790998,1712512241349,-174860.38195641,0.00020898,2]
[321790999,1712512241358,-174860.38195641,0.00020898,2]
[321791000,1712512241367,-100000.0,0.00020899,2]
[321791001,1712512241378,-1189.25768229,0.000209,2]
[321791002,1712512241387,-160.0,0.000209,2]
[321791003,1712512241396,-1856.90490674,0.000209,2]
[321791004,1712512241405,-2742.13,0.000209,2]
[321791005,1712512241414,-2054.17,0.000209,2]
[321791006,1712512241423,-1900.0,0.000209,7]
[321791007,1712512241432,-150.0,0.00021,2]
[321791008,1712512241441,-1300.93357317,0.00021,2]
[321791009,1712512241451,-156.2,0.00021375,2]
[321791010,1712512241460,-150.0,0.000215,2]
[321791011,1712512241469,-545.0,0.00021575,2]
[321791012,1712512241478,-544.0,0.00021575,2]
[321791013,1712512241488,-922.0,0.00021575,2]
[321791014,1712512241497,-180.0,0.00021614,2]
[321791015,1712512241506,-194.414721,0.00021644,2]
[321791016,1712512241518,-861.91,0.00021766,2]